fUST/lending_fUST_20250330
["ID","MTS","AMOUNT","RATE_DAILY","PERIOD"]
[356857648,1743336678471,-1373.59,0.00023561,2]
[356857649,1743336678481,-500.0,0.00023561,2]
[356857650,1743336678491,-1089.35,0.00023561,2]
[356857651,1743336678501,-510.53,0.00023561,2]
[356857652,1743336678511,-786.5,0.00023561,2]
[356857653,1743336678520,-1995.85,0.00023561,2]
[356857654,1743336678529,-1928.93,0.00023561,2]
[356857655,1743336678539,-523.74,0.00023561,2]
[356857656,1743336678548,-523.69,0.00023561,2]
[356857657,1743336678557,-500.0,0.00023561,2]
[356857658,1743336678568,-513.67,0.00023561,2]
[356857659,1743336678578,-1946.49,0.00023561,2]
[356857660,1743336678587,-512.33,0.00023561,2]
[356857661,1743336678596,-1442.4,0.00023561,2]
[356857662,1743336678605,-514.51,0.00023561,2]
[356857663,1743336678614,-500.0,0.00023561,2]
[356857664,1743336678624,-990.4,0.00023561,2]
[356857665,1743336678633,-942.64,0.00023561,2]
[356857666,1743336678643,-500.0,0.00023561,2]
[356857667,1743336678652,-990.42,0.00023561,2]
[356857668,1743336678662,-500.0,0.00023561,2]
[356857669,1743336678672,-500.0,0.00023561,2]
[356857670,1743336678681,-500.0,0.00023561,2]
[356857671,1743336678691,-500.0,0.00023561,2]
[356857672,1743336678820,-2586.18,0.00023561,2]
[356857673,1743336678829,-1024.32,0.00023561,2]
[356857674,1743336678840,-1087.6,0.00023561,2]
[356857675,1743336678850,-516.69,0.00023561,2]
[356857676,1743336678859,-500.0,0.00023561,2]
[356857677,1743336678868,-864.19,0.00023561,2]
[356857678,1743336678878,-683.23,0.00023561,2]
[356857679,1743336678888,-903.38,0.00023561,2]
[356857680,1743336678897,-500.0,0.00023561,2]
[356857681,1743336678906,-937.8,0.00023561,2]
[356857682,1743336678916,-500.0,0.00023561,2]
[356857683,1743336678927,-1131.56,0.00023561,2]
[356857684,1743336678936,-1481.39,0.00023561,2]
[356857685,1743336678945,-798.99,0.00023561,2]
[356857686,1743336678955,-500.0,0.00023561,2]
[356857687,1743336678965,-500.0,0.00023561,2]
[356857688,1743336678974,-517.61,0.00023561,2]
[356857689,1743336678983,-500.0,0.00023561,2]
[356857690,1743336678993,-668.21,0.00023561,2]
[356857691,1743336679003,-687.74,0.00023561,2]
[356857692,1743336679012,-899.15,0.00023561,2]
[356857693,1743336679021,-707.97,0.00023561,2]
[356857694,1743336679030,-1296.96,0.00023561,2]
[356857695,1743336679040,-500.0,0.00023561,2]
[356857696,1743336679050,-500.0,0.00023561,2]
[356857697,1743336679059,-500.0,0.00023561,2]
[356857698,1743336679069,-1345.33,0.00023561,2]
[356857699,1743336679079,-895.06,0.00023561,2]
[356857700,1743336679088,-2501.82,0.00023561,2]
[356857701,1743336679097,-500.0,0.00023561,2]
[356857702,1743336679107,-914.71,0.00023561,2]
[356857703,1743336679117,-500.0,0.00023561,2]
[356857704,1743336679127,-737.75,0.00023561,2]
[356857705,1743336679136,-500.0,0.00023561,2]
[356857706,1743336679145,-4129.73,0.00023561,2]
[356857707,1743336679154,-776.32,0.00023561,2]
[356857708,1743336679163,-304.63454012,0.00023561,2]
[356857709,1743336679173,-4902.77,0.00023561,2]
[356857710,1743336679183,-1672.32,0.00023561,2]
[356857711,1743336679193,-643.85,0.00023561,2]
[356857712,1743336679203,-824.37,0.00023561,2]
[356857713,1743336679212,-4151.45,0.00023561,2]
[356857714,1743336679222,-2985.11,0.00023561,2]
[356857715,1743336679231,-500.04864625,0.00023561,2]
[356857716,1743336679241,-1413.31,0.00023561,2]
[356857717,1743336679251,-500.0,0.00023561,2]
[356857718,1743336679261,-707.76,0.00023561,2]
[356857719,1743336679270,-699.65,0.00023561,2]
[356857720,1743336679280,-500.0,0.00023561,2]
[356857721,1743336679290,-1550.34,0.00023561,2]
[356857722,1743336679300,-736.27,0.00023561,2]
[356857723,1743336679310,-944.78,0.00023561,2]
[356857724,1743336679320,-552.72,0.00023561,2]
[356857725,1743336679330,-1984.0,0.00023561,2]
[356857726,1743336679339,-500.0,0.00023561,2]
[356857727,1743336679349,-4192.73,0.00023561,2]
[356857728,1743336679359,-4062.87,0.00023561,2]
[356857729,1743336679369,-1610.13,0.00023561,2]
[356857730,1743336679379,-527.52,0.00023561,2]
[356857731,1743336679389,-551.98,0.00023561,2]
[356857732,1743336679400,-5745.56,0.00023561,2]
[356857733,1743336679410,-1105.77,0.00023561,2]
[356857734,1743336679419,-2204.43,0.00023561,2]
[356857735,1743336679430,-1201.49,0.00023561,2]
[356857736,1743336679440,-2246.36,0.00023561,2]
[356857737,1743336679450,-810.23,0.00023561,2]
[356857738,1743336679460,-1362.91,0.00023561,2]
[356857739,1743336679470,-2003.96,0.00023561,2]
[356857740,1743336679480,-929.62,0.00023561,2]
[356857741,1743336679490,-878.79,0.00023561,2]
[356857742,1743336679500,-500.0,0.00023561,2]
[356857743,1743336679510,-500.0,0.00023561,2]
[356857744,1743336679519,-500.0,0.00023561,2]
[356857745,1743336679529,-522.62,0.00023561,2]
[356857746,1743336679539,-3169.96,0.00023561,2]
[356857747,1743336679550,-500.0,0.00023561,2]
[356857748,1743336679560,-863.37,0.00023561,2]
[356857749,1743336679570,-784.51,0.00023561,2]
[356857750,1743336679579,-678.48,0.00023561,2]
[356857751,1743336679590,-2366.19,0.00023561,2]
[356857752,1743336679599,-5982.6,0.00023561,2]
[356857753,1743336679609,-500.0,0.00023561,2]
[356857754,1743336679619,-500.0,0.00023561,2]
[356857755,1743336679628,-3762.67,0.00023561,2]
[356857756,1743336679639,-15868.4,0.00023561,2]
[356857757,1743336679648,-710.42,0.00023561,2]
[356857758,1743336679658,-6137.71,0.00023561,2]
[356857759,1743336679668,-4594.19,0.00023561,2]
[356857760,1743336679678,-792.46,0.00023561,2]
[356857761,1743336679687,-704.22,0.00023561,2]
[356857762,1743336679697,-2499.63,0.00023561,2]
[356857763,1743336679706,-1234.8,0.00023561,2]
[356857764,1743336679716,-5195.9,0.00023561,2]
[356857765,1743336679725,-1838.27,0.00023561,2]
[356857766,1743336679735,-12960.42,0.00023561,2]
[356857767,1743336679745,-500.0,0.00023561,2]
[356857768,1743336679758,-2670.09,0.00023561,2]
[356857769,1743336679767,-500.0,0.00023561,2]
[356857770,1743336679777,-2660.8,0.00023561,2]
[356857771,1743336679787,-986.66,0.00023561,2]
[356857772,1743336679798,-762.09,0.00023561,2]
[356857773,1743336679808,-5869.07,0.00023561,2]
[356857774,1743336679817,-615.49,0.00023561,2]
[356857775,1743336679829,-674.35,0.00023561,2]
[356857776,1743336679840,-2378.15,0.00023561,2]
[356857777,1743336679850,-1800.76,0.00023561,2]
[356857778,1743336679860,-1297.51,0.00023561,2]
[356857779,1743336679870,-500.0,0.00023561,2]
[356857780,1743336679879,-1268.95,0.00023561,2]
[356857781,1743336679888,-524.33,0.00023561,2]
[356857782,1743336679897,-881.02,0.00023561,2]
[356857783,1743336679906,-15685.99,0.00023561,2]
[356857784,1743336679915,-1200.54,0.00023561,2]
[356857785,1743336679925,-629.01,0.00023561,2]
[356857786,1743336679935,-8052.37,0.00023561,2]
[356857787,1743336679944,-946.43,0.00023561,2]
[356857788,1743336679954,-503.91,0.00023561,2]
[356857789,1743336679964,-573.79,0.00023561,2]
[356857790,1743336679973,-808.8,0.00023561,2]
[356857791,1743336679983,-767.64,0.00023561,2]
[356857792,1743336679993,-804.42,0.00023561,2]
[356857793,1743336680003,-737.11,0.00023561,2]
[356857794,1743336680012,-500.0,0.00023561,2]
[356857795,1743336680022,-8539.25,0.00023561,2]
[356857796,1743336680031,-540.62,0.00023561,2]
[356857797,1743336680040,-3723.83,0.00023561,2]
[356857798,1743336680050,-500.0,0.00023562,2]
[356857799,1743336680059,-172.883279,0.000236,2]
[356857800,1743336680068,-455.610464,0.000236,2]
[356857801,1743336680078,-500.0,0.00023699,2]
[356857802,1743336680087,-728.46,0.00023835,2]
[356857803,1743336680097,-997.04,0.00023835,2]
[356857804,1743336680107,-500.0,0.00023835,2]
[356857805,1743336680116,-500.0,0.00023835,2]
[356857806,1743336680126,-971.02,0.00023835,2]
[356857807,1743336680135,-357.74450156,0.00023835,2]
[356857808,1743336680144,-500.0,0.00023835,2]
[356857809,1743336680153,-500.0,0.00023835,2]
[356857810,1743336680163,-586.47,0.00023835,2]
[356857811,1743336680173,-651.92,0.00023835,2]
[356857812,1743336680182,-694.25,0.00023835,2]
[356857813,1743336680192,-909.26,0.00023835,2]
[356857814,1743336680201,-508.9,0.00023835,2]
[356857815,1743336680210,-656.04,0.00023835,2]
[356857816,1743336680220,-500.0,0.00023835,2]
[356857817,1743336680230,-500.0,0.00023835,2]
[356857818,1743336680239,-500.0,0.00023835,2]
[356857819,1743336680249,-500.0,0.00023835,2]
[356857820,1743336680258,-770.23,0.00023835,2]
[356857821,1743336680267,-1426.76,0.00023835,2]
[356857822,1743336680277,-500.0,0.00023835,2]
[356857823,1743336680287,-739.19,0.00023835,2]
[356857824,1743336680297,-500.0,0.00023835,2]
[356857825,1743336680307,-572.06,0.00023835,2]
[356857826,1743336680316,-500.0,0.00023835,2]
[356857827,1743336680325,-820.71,0.00023835,2]
[356857828,1743336680335,-500.0,0.00023835,2]
[356857829,1743336680345,-792.51,0.00023835,2]
[356857830,1743336680354,-643.09,0.00023835,2]
[356857831,1743336680364,-500.0,0.00023835,2]
[356857832,1743336680374,-500.0,0.00023835,2]
[356857833,1743336680383,-500.0,0.00023835,2]
[356857834,1743336680393,-500.0,0.00023835,2]
[356857835,1743336680403,-1373.59,0.00023835,2]
[356857836,1743336680412,-500.0,0.00023835,2]
[356857837,1743336680422,-1089.35,0.00023835,2]
[356857838,1743336680431,-510.53,0.00023835,2]
[356857839,1743336680441,-786.5,0.00023835,2]
[356857840,1743336680451,-1995.85,0.00023835,2]
[356857841,1743336680460,-1928.93,0.00023835,2]
[356857842,1743336680470,-523.74,0.00023835,2]
[356857843,1743336680480,-523.69,0.00023835,2]
[356857844,1743336680489,-500.0,0.00023835,2]
[356857845,1743336680499,-513.67,0.00023835,2]
[356857846,1743336680508,-1946.49,0.00023835,2]
[356857847,1743336680517,-512.33,0.00023835,2]
[356857848,1743336680527,-1442.4,0.00023835,2]
[356857849,1743336680537,-514.51,0.00023835,2]
[356857850,1743336680546,-500.0,0.00023835,2]
[356857851,1743336680556,-990.4,0.00023835,2]
[356857852,1743336680565,-942.64,0.00023835,2]
[356857853,1743336680574,-500.0,0.00023835,2]
[356857854,1743336680584,-990.42,0.00023835,2]
[356857855,1743336680593,-500.0,0.00023835,2]
[356857856,1743336680602,-500.0,0.00023835,2]
[356857857,1743336680724,-500.0,0.00023835,2]
[356857858,1743336680733,-500.0,0.00023835,2]
[356857859,1743336680744,-2586.18,0.00023835,2]
[356857860,1743336680757,-1024.32,0.00023835,2]
[356857861,1743336680766,-1087.6,0.00023835,2]
[356857862,1743336680776,-516.69,0.00023835,2]
[356857863,1743336680787,-500.0,0.00023835,2]
[356857864,1743336680797,-864.19,0.00023835,2]
[356857865,1743336680806,-683.23,0.00023835,2]
[356857866,1743336680816,-903.38,0.00023835,2]
[356857867,1743336680828,-500.0,0.00023835,2]
[356857868,1743336680838,-937.8,0.00023835,2]
[356857869,1743336680847,-500.0,0.00023835,2]
[356857870,1743336680856,-1131.56,0.00023835,2]
[356857871,1743336680866,-1481.39,0.00023835,2]
[356857872,1743336680875,-798.99,0.00023835,2]
[356857873,1743336680884,-500.0,0.00023835,2]
[356857874,1743336680894,-171.63807145,0.00023835,2]
[356857875,1743336680903,-517.61,0.00023835,2]
[356857876,1743336680912,-576.95851002,0.00023835,2]
[356857877,1743336680922,-668.21,0.00023835,2]
[356857878,1743336680931,-687.74,0.00023835,2]
[356857879,1743336680941,-899.15,0.00023835,2]
[356857880,1743336680950,-707.97,0.00023835,2]
[356857881,1743336680960,-1296.96,0.00023835,2]
[356857882,1743336680970,-381.26758276,0.00023835,2]
[356857883,1743336680979,-390.15373128,0.00023835,2]
[356857884,1743336680989,-500.0,0.00023835,2]
[356857885,1743336680998,-1345.33,0.00023835,2]
[356857886,1743336681008,-895.06,0.00023835,2]
[356857887,1743336681018,-2501.82,0.00023835,2]
[356857888,1743336681027,-500.0,0.00023835,2]
[356857889,1743336681036,-914.71,0.00023835,2]
[356857890,1743336681046,-500.0,0.00023835,2]
[356857891,1743336681056,-737.75,0.00023835,2]
[356857892,1743336681066,-500.0,0.00023835,2]
[356857893,1743336681075,-4129.73,0.00023835,2]
[356857894,1743336681084,-776.32,0.00023835,2]
[356857895,1743336681094,-4902.77,0.00023835,2]
[356857896,1743336681103,-1672.32,0.00023835,2]
[356857897,1743336681113,-643.85,0.00023835,2]
[356857898,1743336681122,-824.37,0.00023835,2]
[356857899,1743336681131,-4151.45,0.00023835,2]
[356857900,1743336681141,-2985.11,0.00023835,2]
[356857901,1743336681150,-1413.31,0.00023835,2]
[356857902,1743336681160,-341.92755854,0.00023835,2]
[356857903,1743336681170,-707.76,0.00023835,2]
[356857904,1743336681180,-699.65,0.00023835,2]
[356857905,1743336681189,-500.0,0.00023835,2]
[356857906,1743336681199,-1550.34,0.00023835,2]
[356857907,1743336681209,-736.27,0.00023835,2]
[356857908,1743336681218,-944.78,0.00023835,2]
[356857909,1743336681227,-552.72,0.00023835,2]
[356857910,1743336681237,-1984.0,0.00023835,2]
[356857911,1743336681246,-500.0,0.00023835,2]
[356857912,1743336681256,-4192.73,0.00023835,2]
[356857913,1743336681266,-4062.87,0.00023835,2]
[356857914,1743336681276,-1610.13,0.00023835,2]
[356857915,1743336681286,-527.52,0.00023835,2]
[356857916,1743336681295,-551.98,0.00023835,2]
[356857917,1743336681305,-5745.56,0.00023835,2]
[356857918,1743336681314,-1105.77,0.00023835,2]
[356857919,1743336681324,-2204.43,0.00023835,2]
[356857920,1743336681333,-1201.49,0.00023835,2]
[356857921,1743336681344,-2246.36,0.00023835,2]
[356857922,1743336681354,-810.23,0.00023835,2]
[356857923,1743336681364,-1362.91,0.00023835,2]
[356857924,1743336681373,-2003.96,0.00023835,2]
[356857925,1743336681383,-929.62,0.00023835,2]
[356857926,1743336681392,-878.79,0.00023835,2]
[356857927,1743336681402,-500.0,0.00023835,2]
[356857928,1743336681411,-500.0,0.00023835,2]
[356857929,1743336681421,-180.02619446,0.00023835,2]
[356857930,1743336681430,-522.62,0.00023835,2]
[356857931,1743336681440,-3169.96,0.00023835,2]
[356857932,1743336681449,-500.0,0.00023835,2]
[356857933,1743336681459,-863.37,0.00023835,2]
[356857934,1743336681469,-784.51,0.00023835,2]
[356857935,1743336681478,-678.48,0.00023835,2]
[356857936,1743336681488,-2366.19,0.00023835,2]
[356857937,1743336681498,-5982.6,0.00023835,2]
[356857938,1743336681507,-500.0,0.00023835,2]
[356857939,1743336681517,-500.0,0.00023835,2]
[356857940,1743336681527,-3762.67,0.00023835,2]
[356857941,1743336681536,-15868.4,0.00023835,2]
[356857942,1743336681546,-710.42,0.00023835,2]
[356857943,1743336681556,-6137.71,0.00023835,2]
[356857944,1743336681566,-4594.19,0.00023835,2]
[356857945,1743336681575,-792.46,0.00023835,2]
[356857946,1743336681585,-704.22,0.00023835,2]
[356857947,1743336681595,-2499.63,0.00023835,2]
[356857948,1743336681604,-1234.8,0.00023835,2]
[356857949,1743336681614,-5195.9,0.00023835,2]
[356857950,1743336681623,-1838.27,0.00023835,2]
[356857951,1743336681633,-12960.42,0.00023835,2]
[356857952,1743336681643,-500.0,0.00023835,2]
[356857953,1743336681652,-2670.09,0.00023835,2]
[356857954,1743336681661,-500.0,0.00023835,2]
[356857955,1743336681670,-2660.8,0.00023835,2]
[356857956,1743336681680,-986.66,0.00023835,2]
[356857957,1743336681690,-762.09,0.00023835,2]
[356857958,1743336681699,-5869.07,0.00023835,2]
[356857959,1743336681708,-615.49,0.00023835,2]
[356857960,1743336681718,-674.35,0.00023835,2]
[356857961,1743336681727,-2378.15,0.00023835,2]
[356857962,1743336681736,-1800.76,0.00023835,2]
[356857963,1743336681747,-1297.51,0.00023835,2]
[356857964,1743336681759,-178.88677062,0.00023835,2]
[356857965,1743336681768,-1268.95,0.00023835,2]
[356857966,1743336681778,-524.33,0.00023835,2]
[356857967,1743336681787,-881.02,0.00023835,2]
[356857968,1743336681798,-15685.99,0.00023835,2]
[356857969,1743336681808,-1200.54,0.00023835,2]
[356857970,1743336681817,-629.01,0.00023835,2]
[356857971,1743336681830,-8052.37,0.00023835,2]
[356857972,1743336681840,-946.43,0.00023835,2]
[356857973,1743336681850,-503.91,0.00023835,2]
[356857974,1743336681859,-573.79,0.00023835,2]
[356857975,1743336681868,-808.8,0.00023835,2]
[356857976,1743336681878,-767.64,0.00023835,2]
[356857977,1743336681887,-804.42,0.00023835,2]
[356857978,1743336681897,-737.11,0.00023835,2]
[356857979,1743336681907,-500.0,0.00023835,2]
[356857980,1743336681916,-8539.25,0.00023835,2]
[356857981,1743336681926,-540.62,0.00023835,2]
[356857982,1743336681935,-3723.83,0.00023835,2]
[356857983,1743336681945,-500.0,0.00023836,2]
[356857984,1743336681954,-354.0,0.00023845,2]
[356857985,1743336681963,-354.0,0.00023845,2]
[356857986,1743336681973,-354.0,0.00023845,2]
[356857987,1743336681982,-354.0,0.00023845,2]
[356857988,1743336681991,-354.0,0.00023845,2]
[356857989,1743336682000,-354.0,0.00023845,2]
[356857990,1743336682009,-354.0,0.00023845,2]
[356857991,1743336682018,-354.0,0.00023845,2]
[356857992,1743336682028,-354.0,0.00023845,2]
[356857993,1743336682037,-354.0,0.00023845,2]
[356857994,1743336682046,-354.0,0.00023845,2]
[356857995,1743336682055,-354.0,0.00023845,2]
[356857996,1743336682064,-354.0,0.00023845,2]
[356857997,1743336682074,-354.0,0.00023845,2]
[356857998,1743336682083,-210.0,0.00023845,2]
[356857999,1743336682093,-210.0,0.00023845,2]
[356858000,1743336682102,-210.0,0.00023845,2]
[356858001,1743336682112,-210.0,0.00023845,2]
[356858002,1743336682121,-210.0,0.00023845,2]
[356858003,1743336682130,-210.0,0.00023845,2]
[356858004,1743336682139,-210.0,0.00023845,2]
[356858005,1743336682149,-210.0,0.00023845,2]
[356858006,1743336682158,-210.0,0.00023845,2]
[356858007,1743336682167,-210.0,0.00023845,2]
[356858008,1743336682177,-210.0,0.00023845,2]
[356858009,1743336682186,-210.0,0.00023845,2]
[356858010,1743336682195,-210.0,0.00023845,2]
[356858011,1743336682204,-210.0,0.00023845,2]
[356858012,1743336682213,-354.0,0.00023845,2]
[356858013,1743336682222,-354.0,0.00023845,2]
[356858014,1743336682232,-354.0,0.00023845,2]
[356858015,1743336682241,-354.0,0.00023845,2]
[356858016,1743336682251,-354.0,0.00023845,2]
[356858017,1743336682261,-354.0,0.00023845,2]
[356858018,1743336682270,-354.0,0.00023845,2]
[356858019,1743336682279,-354.0,0.00023845,2]
[356858020,1743336682288,-354.0,0.00023845,2]
[356858021,1743336682297,-354.0,0.00023845,2]
[356858022,1743336682307,-354.0,0.00023845,2]
[356858023,1743336682316,-354.0,0.00023845,2]
[356858024,1743336682326,-354.0,0.00023845,2]
[356858025,1743336682336,-354.0,0.00023845,2]
[356858026,1743336682345,-210.0,0.00023845,2]
[356858027,1743336682464,-210.0,0.00023845,2]
[356858028,1743336682475,-210.0,0.00023845,2]
[356858029,1743336682485,-210.0,0.00023845,2]
[356858030,1743336682495,-210.0,0.00023845,2]
[356858031,1743336682504,-210.0,0.00023845,2]
[356858032,1743336682515,-210.0,0.00023845,2]
[356858033,1743336682525,-210.0,0.00023845,2]
[356858034,1743336682534,-210.0,0.00023845,2]
[356858035,1743336682545,-210.0,0.00023845,2]
[356858036,1743336682554,-210.0,0.00023845,2]
[356858037,1743336682564,-210.0,0.00023845,2]
[356858038,1743336682574,-210.0,0.00023845,2]
[356858039,1743336682583,-210.0,0.00023845,2]
[356858040,1743336682593,-354.0,0.00023845,2]
[356858041,1743336682603,-354.0,0.00023845,2]
[356858042,1743336682613,-354.0,0.00023845,2]
[356858043,1743336682623,-354.0,0.00023845,2]
[356858044,1743336682632,-354.0,0.00023845,2]
[356858045,1743336682641,-354.0,0.00023845,2]
[356858046,1743336682651,-354.0,0.00023845,2]
[356858047,1743336682660,-354.0,0.00023845,2]
[356858048,1743336682670,-354.0,0.00023845,2]
[356858049,1743336682679,-354.0,0.00023845,2]
[356858050,1743336682689,-210.0,0.00023845,2]
[356858051,1743336682699,-210.0,0.00023845,2]
[356858052,1743336682709,-210.0,0.00023845,2]
[356858053,1743336682718,-210.0,0.00023845,2]
[356858054,1743336682727,-210.0,0.00023845,2]
[356858055,1743336682737,-210.0,0.00023845,2]
[356858056,1743336682747,-210.0,0.00023845,2]
[356858057,1743336682759,-210.0,0.00023845,2]
[356858058,1743336682769,-210.0,0.00023845,2]
[356858059,1743336682778,-210.0,0.00023845,2]
[356858060,1743336682788,-354.0,0.00023847,2]
[356858061,1743336682799,-354.0,0.00023847,2]
[356858062,1743336682808,-354.0,0.00023847,2]
[356858063,1743336682818,-354.0,0.00023847,2]
[356858064,1743336682827,-354.0,0.00023847,2]
[356858065,1743336682838,-354.0,0.00023847,2]
[356858066,1743336682847,-354.0,0.00023847,2]
[356858067,1743336682857,-354.0,0.00023847,2]
[356858068,1743336682866,-354.0,0.00023847,2]
[356858069,1743336682876,-354.0,0.00023847,2]
[356858070,1743336682885,-354.0,0.00023847,2]
[356858071,1743336682894,-354.0,0.00023847,2]
[356858072,1743336682904,-354.0,0.00023847,2]
[356858073,1743336682913,-354.0,0.00023847,2]
[356858074,1743336682923,-354.0,0.00023847,2]
[356858075,1743336682932,-354.0,0.00023847,2]
[356858076,1743336682942,-354.0,0.00023847,2]
[356858077,1743336682951,-210.0,0.00023847,2]
[356858078,1743336682961,-210.0,0.00023847,2]
[356858079,1743336682970,-210.0,0.00023847,2]
[356858080,1743336682979,-210.0,0.00023847,2]
[356858081,1743336682989,-210.0,0.00023847,2]
[356858082,1743336682998,-210.0,0.00023847,2]
[356858083,1743336683007,-210.0,0.00023847,2]
[356858084,1743336683017,-210.0,0.00023847,2]
[356858085,1743336683026,-210.0,0.00023847,2]
[356858086,1743336683035,-210.0,0.00023847,2]
[356858087,1743336683045,-210.0,0.00023847,2]
[356858088,1743336683054,-210.0,0.00023847,2]
[356858089,1743336683063,-210.0,0.00023847,2]
[356858090,1743336683072,-210.0,0.00023847,2]
[356858091,1743336683082,-210.0,0.00023847,2]
[356858092,1743336683091,-210.0,0.00023847,2]
[356858093,1743336683101,-210.0,0.00023847,2]
[356858094,1743336683110,-354.0,0.00023847,2]
[356858095,1743336683119,-354.0,0.00023847,2]
[356858096,1743336683128,-354.0,0.00023847,2]
[356858097,1743336683138,-354.0,0.00023847,2]
[356858098,1743336683147,-354.0,0.00023847,2]
[356858099,1743336683156,-354.0,0.00023847,2]
[356858100,1743336683165,-354.0,0.00023847,2]
[356858101,1743336683175,-354.0,0.00023847,2]
[356858102,1743336683184,-354.0,0.00023847,2]
[356858103,1743336683193,-354.0,0.00023847,2]
[356858104,1743336683202,-354.0,0.00023847,2]
[356858105,1743336683212,-354.0,0.00023847,2]
[356858106,1743336683224,-354.0,0.00023847,2]
[356858107,1743336683247,-354.0,0.00023847,2]
[356858108,1743336683263,-210.0,0.00023847,2]
[356858109,1743336683284,-210.0,0.00023847,2]
[356858110,1743336683306,-210.0,0.00023847,2]
[356858111,1743336683323,-210.0,0.00023847,2]
[356858112,1743336683342,-210.0,0.00023847,2]
[356858113,1743336683359,-210.0,0.00023847,2]
[356858114,1743336683374,-210.0,0.00023847,2]
[356858115,1743336683393,-210.0,0.00023847,2]
[356858116,1743336683413,-210.0,0.00023847,2]
[356858117,1743336683431,-210.0,0.00023847,2]
[356858118,1743336683445,-210.0,0.00023847,2]
[356858119,1743336683465,-210.0,0.00023847,2]
[356858120,1743336683480,-210.0,0.00023847,2]
[356858121,1743336683495,-210.0,0.00023847,2]
[356858122,1743336683513,-354.0,0.00023847,2]
[356858123,1743336683528,-354.0,0.00023847,2]
[356858124,1743336683544,-354.0,0.00023847,2]
[356858125,1743336683560,-354.0,0.00023847,2]
[356858126,1743336683576,-354.0,0.00023847,2]
[356858127,1743336683590,-354.0,0.00023847,2]
[356858128,1743336683605,-354.0,0.00023847,2]
[356858129,1743336683620,-354.0,0.00023847,2]
[356858130,1743336683635,-354.0,0.00023847,2]
[356858131,1743336683651,-354.0,0.00023847,2]
[356858132,1743336683666,-354.0,0.00023847,2]
[356858133,1743336683682,-354.0,0.00023847,2]
[356858134,1743336683698,-354.0,0.00023847,2]
[356858135,1743336683714,-354.0,0.00023847,2]
[356858136,1743336683729,-210.0,0.00023847,2]
[356858137,1743336683744,-210.0,0.00023847,2]
[356858138,1743336683763,-210.0,0.00023847,2]
[356858139,1743336683779,-210.0,0.00023847,2]
[356858140,1743336683795,-210.0,0.00023847,2]
[356858141,1743336683810,-210.0,0.00023847,2]
[356858142,1743336683826,-210.0,0.00023847,2]
[356858143,1743336683841,-210.0,0.00023847,2]
[356858144,1743336683856,-210.0,0.00023847,2]
[356858145,1743336683871,-210.0,0.00023847,2]
[356858146,1743336683885,-210.0,0.00023847,2]
[356858147,1743336683900,-210.0,0.00023847,2]